bitfinex/quotes_ETHUSD_20220123
["timestamp","ask_amount","ask_price","bid_price","bid_amount"]
[1642917196569,1.31260884,2459.1,2458.6,1.31604624]
[1642917196771,4.13592309,2459.9,2458.6,1.31604624]
[1642917196772,4.08946883,2459.6,2459.0,0.57704847]
[1642917196968,0.20311,2459.6,2459.0,0.57704847]
[1642917197171,0.1625,2459.5,2459.1,0.00341054]
[1642917197768,0.1625,2459.5,2458.4,0.00738951]
[1642917197967,0.20311,2459.6,2458.4,0.00738951]
[1642917197968,1.29446642,2458.9,2458.4,0.00738951]
[1642917198471,0.1625,2459.3,2458.6,1.38828697]
[1642917198919,0.1625,2459.3,2458.7,0.00568424]
[1642917199520,1.11894334,2459.2,2458.4,0.00738951]
[1642917199921,1.32205334,2459.2,2458.4,0.00738951]
[1642917200318,1.32205334,2459.2,2458.4,1.41072907]
[1642917200724,1.26899525,2458.8,2458.4,1.41072907]
[1642917201118,1.26899525,2458.8,2458.4,0.00738951]
[1642917201524,0.1625,2458.7,2458.4,0.00738951]
[1642917201924,0.20311,2458.5,2458.4,0.00738951]
[1642917202225,3.41561,2458.5,2458.4,0.00738951]
[1642917202422,3.05,2458.4,2457.4,3.6638]
[1642917202670,0.1625,2458.3,2457.4,3.6638]
[1642917202870,0.1625,2458.3,2457.5,0.00511581]
[1642917203069,0.1625,2458.4,2457.5,0.00511581]
[1642917203471,0.20311,2458.3,2457.7,1.42465133]
[1642917203772,0.1625,2458.2,2457.8,0.00341054]
[1642917204170,2.033,2458.5,2458.3,0.73121999]
[1642917204571,1.4758136,2458.4,2458.3,0.73121999]
[1642917206412,1.4758136,2458.4,2458.3,0.03121999]
[1642917207319,1.4758136,2458.4,2457.8,0.00341054]
[1642917207320,3.05,2458.3,2457.8,0.00341054]
[1642917207525,0.04326162,2458.2,2456.9,0.00202443]
[1642917207726,1.0188,2457.9,2456.9,0.00202443]
[1642917208019,1.0188,2457.9,2457.3,0.00284212]
[1642917208617,1.36040665,2457.5,2456.9,0.00511581]
[1642917208826,1.36040665,2457.5,2457.2,0.46416317]
[1642917209423,1.36040665,2457.5,2456.9,0.00511581]
[1642917209628,2.15440665,2457.5,2456.9,0.00511581]
[1642917209824,2.15440665,2457.5,2456.5,0.0073895]
[1642917209825,2.45440665,2457.5,2456.5,0.0073895]
[1642917210064,1.01898,2457.3,2456.5,0.0073895]
[1642917210267,2.87330665,2457.5,2456.6,1.25347205]
[1642917210476,1.36040665,2457.5,2456.6,1.25347205]
[1642917210669,1.36040665,2457.5,2456.7,0.00625266]
[1642917210873,25.06170527,2458.1,2456.7,0.00625266]
[1642917210874,0.00170527,2458.1,2456.7,0.00625266]
[1642917211175,0.00170527,2458.1,2456.5,0.01275732]
[1642917211176,0.00170527,2458.1,2456.6,0.00682108]
[1642917211371,0.00170527,2458.1,2456.7,3.46176431]
[1642917211571,0.00113685,2458.0,2456.7,3.46176431]
[1642917211769,0.00113685,2458.0,2456.8,0.00568423]
[1642917211970,7.96031,2458.3,2456.8,0.00568423]
[1642917211971,1.13176048,2457.5,2456.8,0.00568423]
[1642917212470,1.13176048,2457.5,2456.5,1.01275732]
[1642917212471,1.13176048,2457.5,2456.6,0.00682108]
[1642917212670,1.13176048,2457.5,2456.7,3.46212771]
[1642917212870,1.13176048,2457.5,2456.8,0.22896496]
[1642917213070,1.13176048,2457.5,2456.8,0.00568423]
[1642917213271,1.5127,2457.9,2456.9,0.00511581]
[1642917213472,1.5127,2457.9,2456.6,0.00682108]
[1642917213473,1.15124699,2457.0,2456.6,0.00682108]
[1642917213676,1.5127,2457.9,2457.2,2.30249398]
[1642917214525,2.14217369,2458.2,2457.2,2.30249398]
[1642917214526,1.14217369,2458.2,2457.2,2.30249398]
[1642917214723,0.00227369,2458.2,2457.3,0.0101455]
[1642917215022,0.00170527,2458.1,2457.4,0.00227369]
[1642917215424,0.00113685,2458.0,2457.4,0.00227369]
[1642917215822,0.00511581,2458.7,2457.4,0.00227369]
[1642917216226,0.00454739,2458.6,2457.4,0.00227369]
[1642917216521,2.03685,2458.8,2457.4,0.00227369]
[1642917216522,0.00397896,2458.5,2457.4,0.00227369]
[1642917216722,1.01838,2458.8,2458.5,0.00795792]
[1642917216931,4.9331,2459.5,2458.5,0.00795792]
[1642917217127,0.00113685,2458.7,2458.5,0.00795792]
[1642917217986,0.00113685,2458.7,2458.6,3.2532]
[1642917218185,0.00113685,2458.7,2458.6,3.05]
[1642917219185,0.04,2459.8,2458.9,0.0022737]
[1642917219587,0.00568424,2459.7,2458.9,0.0022737]
[1642917220090,0.01236236,2459.5,2458.9,0.0022737]
[1642917220291,0.01236236,2459.5,2457.4,0.01269723]
[1642917220292,0.01206458,2459.0,2457.4,0.01269723]
[1642917220493,3.05,2459.3,2457.6,0.00234342]
[1642917220494,0.01234171,2458.3,2457.6,0.00234342]
[1642917220689,0.01234171,2458.3,2457.6,0.00859608]
[1642917220901,0.01234171,2458.3,2457.7,0.00568423]
[1642917221513,1.21127607,2457.5,2457.3,0.00795793]
[1642917223921,1.21127607,2457.5,2457.3,4.10795793]
[1642917224418,1.21127607,2457.5,2457.4,0.0073895]
[1642917226869,4.06127607,2457.5,2457.4,0.0073895]
[1642917227074,2.5,2457.4,2457.2,2.30249398]
[1642917227271,0.1625,2457.3,2457.2,2.30249398]
[1642917227471,0.1625,2457.4,2457.2,2.30249398]
[1642917227672,0.1625,2457.4,2456.5,0.13819997]
[1642917227673,3.05,2457.4,2456.5,0.13819997]
[1642917228173,3.05,2457.4,2456.6,0.00341054]
[1642917228377,0.1625,2457.3,2456.6,0.00341054]
[1642917228672,0.1625,2457.3,2455.8,3.6365]
[1642917228673,1.18149,2457.3,2455.9,3.4703579]
[1642917228920,1.3114352,2456.7,2455.9,0.00738951]
[1642917229118,1.3114352,2456.7,2455.8,3.6365]
[1642917229119,1.3114352,2456.7,2456.0,0.00682108]
[1642917229317,4.02606137,2457.2,2456.3,0.22896496]
[1642917229518,0.1625,2457.4,2456.3,0.22896496]
[1642917229721,7.88233,2457.7,2456.4,0.00454739]
[1642917229921,6.8635,2457.7,2456.4,0.00454739]
[1642917230121,0.00227369,2457.6,2456.4,0.00454739]
[1642917230522,1.34304301,2457.1,2456.4,0.00454739]
[1642917231522,1.34304301,2457.1,2456.2,0.00568424]
[1642917232124,1.34304301,2457.1,2456.3,2.30925594]
[1642917232324,0.01220534,2456.9,2456.3,5.594e-05]
[1642917232581,0.20652819,2456.9,2456.4,0.00454739]
[1642917233375,1.229,2456.5,2456.4,0.00454739]
[1642917233774,1.229,2456.5,2456.3,0.00511581]
[1642917234578,1.229,2456.5,2456.0,0.23578604]
[1642917234776,1.21997,2456.5,2456.1,0.00625266]
[1642917234977,2.37639155,2456.5,2456.1,0.00625266]
[1642917235577,2.37639155,2456.5,2456.0,0.00682108]
[1642917236725,4.46221958,2457.2,2456.6,1.31779209]
[1642917236928,1.28717821,2457.1,2456.6,1.31779209]
[1642917237127,1.78117821,2457.1,2456.7,0.00284212]
[1642917238131,3.9507055,2457.0,2455.9,0.004]
[1642917238331,3.9507055,2457.0,2456.0,0.004]
[1642917238332,24.06,2456.8,2456.0,0.004]
[1642917238531,24.06,2456.8,2456.0,0.00797896]
[1642917238532,1.04687273,2456.6,2456.0,0.00797896]
[1642917238732,4.78638352,2456.5,2456.0,0.00797896]
[1642917239132,4.78638352,2456.5,2455.1,0.00234342]
[1642917239133,4.25581784,2456.3,2455.1,0.00234342]
[1642917239334,2.0390983,2456.1,2455.1,0.00234342]
[1642917239538,2.0390983,2456.1,2455.2,0.00454739]
[1642917239539,0.494,2456.0,2455.2,0.00454739]
[1642917239935,0.494,2456.0,2454.9,0.00625266]
[1642917239936,1.01957,2455.9,2454.9,0.00625266]
[1642917240186,1.51357,2455.9,2454.9,0.00625266]
[1642917240380,1.51357,2455.9,2455.2,0.22896496]
[1642917240381,0.494,2455.9,2455.2,0.22896496]
[1642917240585,0.00113684,2456.2,2455.2,0.22896496]
[1642917240881,0.00113684,2456.2,2455.5,0.01241798]
[1642917241082,0.00454739,2456.1,2455.5,0.01241798]
[1642917241483,0.00397897,2456.0,2455.5,0.01241798]
[1642917241882,0.00341054,2455.9,2455.3,0.2032]
[1642917242382,0.00284212,2455.8,2455.2,0.19502018]
[1642917242781,0.0022737,2455.7,2455.2,0.19502018]
[1642917243183,0.00170527,2455.6,2455.2,0.19502018]
[1642917243385,0.01227865,2456.7,2455.7,0.00341054]
[1642917243585,0.17477865,2456.7,2455.7,0.00341054]
[1642917243826,0.00568424,2456.6,2455.7,0.00341054]
[1642917244029,1.35024069,2456.2,2455.7,0.00341054]
[1642917244430,0.00284212,2456.1,2455.7,0.00341054]
[1642917244833,0.0022737,2456.0,2455.7,0.00341054]
[1642917245133,0.00170527,2455.9,2455.7,0.00341054]
[1642917245435,1.35024069,2456.2,2455.7,0.00341054]
[1642917245436,0.00113685,2455.8,2455.7,0.00341054]
[1642917248270,1.09258811,2455.8,2455.7,0.00341054]
[1642917249374,0.00113685,2455.8,2455.7,0.00341054]
[1642917250375,1.19757116,2455.8,2455.7,0.00341054]
[1642917251918,0.03889908,2455.6,2455.3,0.00170527]
[1642917252118,0.1625,2455.6,2455.3,0.00170527]
[1642917252320,0.1625,2455.6,2455.0,0.00341054]
[1642917252720,0.1625,2455.7,2455.0,0.00341054]
[1642917252920,1.25366319,2455.3,2455.0,0.00341054]
[1642917253720,1.41616319,2455.3,2454.6,0.00568423]
[1642917253919,0.02908447,2455.2,2454.6,0.00568423]
[1642917254118,0.02908447,2455.2,2454.3,0.0073895]
[1642917254321,1.4366313,2454.6,2454.3,0.0073895]
[1642917254925,1.4366313,2454.6,2454.4,2.31151552]
[1642917255367,0.1625,2454.9,2454.5,0.20127283]
[1642917255567,1.01991,2455.1,2454.5,0.20127283]
[1642917255568,0.1625,2455.1,2454.5,0.20127283]
[1642917255769,0.1625,2455.4,2454.6,0.00568423]
[1642917255967,0.00113685,2455.8,2454.6,0.00568423]
[1642917256167,0.00113685,2455.8,2454.8,0.01238388]
[1642917256368,0.00113685,2455.8,2455.2,0.01238149]
[1642917256571,0.00625266,2455.7,2455.2,0.01238149]
[1642917256769,0.0325,2456.6,2456.2,0.01250532]
[1642917257173,0.00454739,2456.5,2456.2,0.01250532]
[1642917257580,0.00397896,2456.4,2456.2,0.01250532]
[1642917258076,0.00341054,2456.3,2456.2,0.01250532]
[1642917258476,3.93641054,2456.3,2456.2,0.01250532]
[1642917259520,2.03641054,2456.3,2455.4,3.58000532]
[1642917259922,0.00284211,2456.2,2455.5,0.00113685]
[1642917260321,0.00227369,2456.1,2455.5,0.00113685]
[1642917260526,0.04489177,2456.0,2455.5,0.00113685]
[1642917260721,0.04489177,2456.0,2454.5,0.37054763]
[1642917260722,0.07909704,2456.0,2455.2,0.00284212]
[1642917260920,0.03655052,2455.8,2454.8,0.00511581]
[1642917261124,0.02866665,2455.9,2454.8,0.00511581]
[1642917261321,1.47178588,2455.6,2454.8,0.00511581]
[1642917261524,1.47178588,2455.6,2454.9,2.31066931]
[1642917261921,1.47178588,2455.6,2455.0,0.00397897]
[1642917263168,1.47178588,2455.6,2454.6,0.00625266]
[1642917263972,1.47178588,2455.6,2454.7,2.31068627]
[1642917264373,2.06663684,2455.9,2454.8,0.00511581]
[1642917264673,0.00113684,2455.9,2454.9,0.03372725]
[1642917264873,0.00113684,2455.9,2455.2,0.03526307]
[1642917265074,0.00113684,2455.9,2455.3,0.17126811]
[1642917265277,0.00113684,2455.9,2455.7,0.0125382]
[1642917265474,1.34548587,2456.9,2455.9,3.05227368]
[1642917265673,1.34548587,2456.9,2456.0,4.42242156]
[1642917265874,0.00454739,2456.7,2456.0,4.42242156]
[1642917266172,0.00397897,2456.6,2456.0,4.42242156]
[1642917266622,0.00341055,2456.5,2456.0,4.42242156]
[1642917266823,0.00341055,2456.5,2456.0,1.0]
[1642917267024,0.00284212,2456.4,2456.0,1.0]
[1642917267424,0.0022737,2456.3,2456.0,1.0]
[1642917267831,0.00170527,2456.2,2456.0,1.0]
[1642917268232,0.00113685,2456.1,2456.0,1.0]
[1642917268427,0.00113685,2456.1,2456.0,3.1]
[1642917268627,3.685e-05,2456.1,2456.0,5.68996835]
[1642917268827,3.685e-05,2456.1,2456.0,7.50645236]
[1642917269028,0.04,2457.1,2456.1,3.05076315]
[1642917269232,0.04,2457.1,2456.2,4.0398327]
[1642917269432,0.04,2457.1,2456.3,0.1628]
[1642917269433,0.00511581,2457.0,2456.3,0.1628]
[1642917269627,0.00511581,2457.0,2456.3,4.0822]
[1642917269828,0.00454739,2456.9,2456.4,1.0]
[1642917270078,0.00454739,2456.9,2456.5,0.1628]
[1642917270277,0.00397897,2456.8,2456.5,0.1628]
[1642917270680,0.00341054,2456.7,2456.5,0.1628]
[1642917270880,0.00341054,2456.7,2456.6,3.25353]
[1642917271077,0.04,2457.1,2456.6,3.05]
[1642917271485,0.00511581,2457.0,2456.6,3.05]
[1642917271883,0.00454739,2456.9,2456.4,0.1628]
[1642917272082,0.00454739,2456.9,2456.3,3.9194]
[1642917272283,0.00397897,2456.8,2456.3,3.9194]
[1642917272684,0.00341054,2456.7,2456.3,3.9194]
[1642917273090,0.00284212,2456.6,2456.4,2.30956546]
[1642917273483,0.0022737,2456.5,2456.4,2.30956546]
[1642917274125,1.48196574,2456.5,2456.4,2.30956546]
[1642917274324,0.0022737,2456.5,2456.2,2.30956546]
[1642917274524,0.0022737,2456.5,2456.4,4.1]
[1642917274726,0.195,2457.0,2456.4,4.1]
[1642917274727,0.1625,2457.0,2456.4,4.1]
[1642917275029,0.00454739,2456.9,2456.4,4.1]
[1642917275324,0.00397897,2456.8,2456.4,4.1]
[1642917275528,1.54200295,2456.5,2456.4,4.1]
[1642917275924,1.54427665,2456.5,2456.4,4.1]
[1642917276725,1.70677665,2456.5,2456.4,4.1]
[1642917277125,1.73927665,2456.5,2456.4,4.1]
[1642917277326,1.73927665,2456.5,2455.9,0.00227368]
[1642917277327,2.35,2456.2,2455.9,0.00227368]
[1642917277773,0.05615762,2456.1,2455.9,0.00227368]
[1642917277974,0.1625,2456.0,2455.9,0.00227368]
[1642917278179,0.1625,2456.1,2455.9,0.00227368]
[1642917278377,0.1625,2456.1,2455.9,0.00341053]
[1642917278576,3.22205136,2456.0,2455.9,0.00341053]
[1642917278773,1.22205136,2456.0,2455.9,0.00341053]
[1642917279177,3.05,2455.9,2454.8,0.00234342]
[1642917279378,0.01291303,2455.4,2454.2,0.00234342]
[1642917279577,0.195,2455.3,2454.9,0.00568423]
[1642917279975,0.03122996,2455.2,2454.9,0.00568423]
[1642917280178,1.0,2455.6,2454.9,0.00568423]
[1642917280179,0.1625,2455.6,2454.9,0.00568423]
[1642917280379,0.0325,2455.8,2455.2,0.09368988]
[1642917280678,2.033,2455.8,2455.3,0.00341054]
[1642917280882,0.01259755,2456.3,2455.3,0.00341054]
[1642917280883,0.1625,2456.2,2455.3,0.00341054]
[1642917281077,1.21118125,2456.1,2455.3,0.00341054]
[1642917281332,1.2123181,2456.1,2455.3,0.00341054]
[1642917281514,1.21118125,2456.1,2455.3,0.00341054]
[1642917282315,0.0022737,2456.3,2455.3,0.00341054]
[1642917282516,0.01229994,2455.9,2455.3,0.00341054]
[1642917282914,2.22970527,2456.2,2455.3,0.00341054]
[1642917283114,2.06720527,2456.2,2455.3,0.00341054]
[1642917283315,2.033,2455.8,2455.3,0.00341054]
[1642917284823,1.19231117,2455.5,2455.3,0.00341054]
[1642917285869,3.05,2455.3,2454.6,0.1628]
[1642917286073,0.21890723,2455.2,2454.5,2.77297729]
[1642917286268,0.21890723,2455.2,2454.7,0.00341054]
[1642917286269,0.03391677,2455.1,2454.7,0.00341054]
[1642917287074,2.033,2454.9,2454.7,0.00341054]
[1642917287270,0.494,2455.7,2454.4,0.16791581]
[1642917287473,1.2449,2455.9,2454.4,0.11791581]
[1642917287673,0.00682108,2455.6,2454.5,0.00454738]
[1642917287873,0.0325,2455.6,2454.5,0.00454738]
[1642917288074,0.18136739,2455.5,2454.5,0.00454738]
[1642917288273,0.01886739,2455.5,2454.5,0.00454738]
[1642917288475,0.00568424,2455.4,2454.5,0.00454738]
[1642917288927,0.00511581,2455.3,2454.5,0.00454738]
[1642917289425,0.00454739,2455.2,2454.5,0.00454738]
[1642917289827,0.00397897,2455.1,2454.5,0.00454738]
[1642917290027,0.494,2455.0,2454.5,0.00454738]
[1642917290228,0.0325,2454.9,2454.2,0.00113684]
[1642917290426,0.494,2454.8,2454.2,0.00113684]
[1642917290628,2.1955,2454.7,2454.2,0.00113684]
[1642917290827,2.08207683,2454.6,2454.2,0.00113684]
[1642917291044,2.08321368,2454.6,2454.2,0.00113684]
[1642917291230,2.033,2454.4,2454.1,0.00170527]
[1642917291430,0.02588098,2454.3,2454.1,0.00170527]
[1642917291630,3.0825,2454.2,2454.1,0.00170527]
[1642917291828,3.5765,2454.2,2454.1,0.00170527]
[1642917292872,3.7393,2454.2,2454.1,0.00170527]
[1642917293173,0.6893,2454.2,2454.1,0.00170527]
[1642917293672,0.6793,2454.2,2454.1,0.00170527]
[1642917293875,0.5165,2454.2,2454.1,0.00170527]
[1642917294073,2.15,2454.1,2454.0,8.52170527]
[1642917294273,3.33455195,2454.1,2454.0,8.52170527]
[1642917295174,3.36705195,2454.1,2454.0,8.52170527]
[1642917295374,3.36705195,2454.1,2452.9,0.00234342]
[1642917295375,1.18525788,2453.1,2452.9,0.00234342]
[1642917295580,0.02542165,2453.7,2452.4,1.3159]
[1642917295776,0.494,2453.9,2453.4,1.51379781]
[1642917295978,0.8393086,2453.9,2453.0,2.31879135]
[1642917296176,0.163,2453.8,2453.5,0.00341054]
[1642917296423,0.163,2453.8,2453.0,2.31253869]
[1642917296424,0.494,2453.7,2453.1,0.00568423]
[1642917296619,0.5265,2453.7,2453.1,0.00568423]
[1642917296817,2.033,2453.6,2453.1,0.00568423]
[1642917297018,2.033,2453.6,2453.2,1.52258405]
[1642917297426,1.3092,2454.2,2453.2,1.52258405]
[1642917297427,1.6402,2454.2,2453.3,0.00454739]
[1642917297625,1.32526993,2454.0,2453.3,0.00454739]
[1642917298426,1.32526993,2454.0,2452.9,0.00682108]
[1642917298826,0.657,2454.2,2452.9,0.00682108]
[1642917298827,1.20927357,2453.4,2452.9,0.00682108]
[1642917299029,0.657,2454.2,2452.9,0.00682108]
[1642917299226,0.0325,2454.1,2452.9,0.00682108]
[1642917299425,0.494,2454.2,2453.0,2.31232785]
[1642917299627,0.494,2454.2,2453.6,1.20177124]
[1642917299826,0.494,2454.2,2453.1,3.77758423]
[1642917300070,0.494,2454.2,2453.7,0.00227369]
[1642917300270,1.40978128,2453.9,2453.2,0.00511581]
[1642917300471,0.494,2454.2,2453.9,2.28867248]
[1642917300672,1.27158884,2454.1,2453.9,2.28867248]
[1642917304032,0.1628,2454.3,2453.9,2.28867248]
[1642917304234,0.13819997,2454.4,2454.0,1.31466664]
[1642917304629,0.00113685,2454.3,2454.0,1.31466664]
[1642917304827,0.00113685,2454.3,2453.9,2.28867248]
[1642917305227,1.30444172,2454.2,2453.9,2.28867248]
[1642917306329,3.05,2454.1,2453.2,0.00511581]
[1642917306536,3.4183996,2454.1,2453.2,0.00511581]
[1642917306735,0.68832302,2454.0,2453.2,0.00511581]
[1642917306930,0.06719544,2453.9,2453.2,0.00511581]
[1642917307130,0.163,2453.8,2452.8,0.0073895]
[1642917307331,0.0325,2453.7,2452.8,0.0073895]
[1642917307585,0.163,2453.6,2452.8,0.0073895]
[1642917307771,0.0325,2453.5,2452.8,0.0073895]
[1642917307972,1.45120702,2452.9,2452.8,0.0073895]
[1642917308172,1.45120702,2452.9,2452.6,1.1453863]
[1642917308373,1.45120702,2452.9,2452.4,0.0096632]
[1642917308573,1.45120702,2452.9,2452.7,0.00795793]
[1642917308775,1.45120702,2452.9,2452.3,0.01023162]
[1642917309387,1.17424306,2452.5,2452.3,1.26348861]
[1642917309581,0.0325,2453.0,2452.5,2.34848611]
[1642917309780,1.11785401,2452.9,2452.5,2.34848611]
[1642917309978,1.11785401,2452.9,2452.6,0.00852635]
[1642917311728,1.11785401,2452.9,2452.7,1.13528578]
[1642917312134,1.11785401,2452.9,2452.8,0.0073895]
[1642917312331,0.163,2453.4,2452.8,0.020266]
[1642917312531,7.13623685,2454.3,2453.3,2.20589006]
[1642917312532,0.163,2454.0,2453.3,2.20589006]
[1642917312730,0.00113685,2454.3,2453.3,1.8]
[1642917312931,0.00113685,2454.3,2453.4,0.00397896]
[1642917313335,1.45520869,2453.8,2453.4,0.00397896]
[1642917313933,1.45520869,2453.8,2453.6,1.44385574]
[1642917314334,1.45520869,2453.8,2453.7,0.00227369]
[1642917315573,1.45520869,2453.8,2452.9,0.00682108]
[1642917315977,1.45520869,2453.8,2453.1,1.30754363]
[1642917316378,1.45520869,2453.8,2453.2,0.00511581]
[1642917317580,1.61820869,2453.8,2453.1,1.27505965]
[1642917317779,1.61820869,2453.8,2453.2,0.00511581]
[1642917318281,1.52258637,2453.4,2453.2,0.00511581]
[1642917318484,1.82258637,2453.4,2453.2,0.00511581]
[1642917318686,2.413,2453.3,2453.2,0.00511581]
[1642917318923,0.1955,2453.3,2452.7,0.00795793]
[1642917319122,0.1955,2453.3,2452.6,0.00852635]
[1642917319525,1.16255283,2452.8,2452.6,0.00852635]
[1642917320455,0.163,2452.7,2452.6,0.00852635]
[1642917320628,1.28686225,2453.2,2452.6,0.00852635]
[1642917320826,1.58686225,2453.2,2452.6,0.00852635]
[1642917321026,26.66756125,2453.2,2452.6,0.00852635]
[1642917321426,0.3,2453.1,2452.6,0.00852635]
[1642917321627,0.04438,2453.0,2452.6,0.00852635]
[1642917322233,1.15023754,2452.7,2452.6,0.00852635]
[1642917324097,0.04438,2453.3,2452.6,0.00852635]
[1642917324296,2.65191,2453.7,2453.0,3.45071262]
[1642917324297,1.1374,2453.7,2453.0,3.45071262]
[1642917324496,0.04438,2453.8,2453.1,0.02950681]
[1642917324698,0.04438,2453.9,2453.1,0.00568423]
[1642917325004,24.10438,2453.9,2453.1,0.00568423]
[1642917325203,1.28485075,2453.4,2453.1,0.00568423]
[1642917325602,24.10438,2453.9,2453.1,0.00568423]
[1642917325801,0.04438,2453.9,2453.1,3.12252021]
[1642917326002,2.04085,2454.2,2453.1,3.12252021]
[1642917326003,0.49829585,2454.2,2453.1,4.12252021]
[1642917326202,0.4994327,2454.3,2453.2,0.01818867]
[1642917326427,0.04438,2454.2,2453.2,0.00511581]
[1642917326630,0.49829585,2454.1,2453.3,0.00454739]
[1642917326829,0.49829585,2453.9,2453.1,0.00568423]
[1642917327032,0.49829585,2453.7,2453.1,0.00568423]
[1642917327238,0.84267585,2453.7,2453.1,0.00568423]
[1642917327535,0.49829585,2453.4,2453.1,0.00568423]
[1642917327931,0.49829585,2453.3,2453.1,0.00568423]
[1642917328132,3.19267585,2453.2,2453.1,0.00568423]
[1642917328331,3.44829585,2453.2,2453.1,0.00568423]
[1642917328530,4.79267585,2453.2,2453.1,0.00568423]
[1642917328730,3.74829585,2453.2,2453.1,0.00568423]
[1642917328934,4.74829585,2453.2,2453.1,0.00568423]
[1642917329433,0.49829585,2453.2,2453.1,0.00568423]
[1642917330675,2.89829585,2453.1,2453.0,3.45071262]
[1642917330877,0.49829585,2453.1,2453.0,3.45071262]
[1642917331075,3.29643921,2453.1,2453.0,3.45071262]
[1642917331279,1.99643921,2453.1,2453.0,3.16071262]
[1642917332175,2.29643921,2453.1,2453.0,3.16071262]
[1642917332477,0.49829585,2452.9,2452.5,2.34848611]
[1642917332683,1.93532152,2452.6,2452.5,2.34848611]
[1642917333928,2.23532152,2452.6,2452.5,2.34848611]
[1642917334130,0.49829585,2452.6,2452.5,2.34848611]
[1642917337333,0.49829585,2452.6,2452.5,3.78919102]
[1642917338173,0.00170527,2453.4,2452.6,2.89545321]
[1642917338378,0.00170527,2453.4,2452.6,6.54554845]
[1642917338576,0.00113684,2453.3,2452.7,1.0022737]
[1642917338774,0.00113684,2453.3,2453.2,1.19392263]
[1642917338979,1.13375197,2453.9,2453.2,1.19392263]
[1642917339177,0.00113684,2453.3,2453.2,1.19392263]
[1642917339377,1.13375197,2453.9,2453.2,1.19392263]
[1642917339378,0.00397896,2453.8,2453.2,1.19392263]
[1642917339579,0.00113684,2453.3,2452.8,0.00170527]
[1642917339783,1.41149263,2453.3,2452.8,0.00170527]
[1642917340882,0.34442,2453.2,2452.8,0.00170527]
[1642917341083,0.04442,2453.2,2452.8,0.00170527]
[1642917341333,0.04442,2453.2,2451.8,0.00237152]
[1642917341334,0.31272876,2452.9,2451.8,0.00237152]
[1642917341524,0.55955508,2452.8,2452.6,0.00113685]
[1642917341924,0.08855708,2453.1,2452.1,3.08768121]
[1642917341925,0.00170527,2453.1,2452.1,3.08768121]
[1642917342126,0.00170527,2453.1,2453.0,0.10751977]
[1642917342325,2.61311889,2453.7,2453.0,0.10751977]
[1642917342526,2.60028424,2453.7,2452.3,7.21190224]
[1642917342722,0.00341054,2453.4,2452.4,1.0]
[1642917342924,0.00341054,2453.4,2452.4,1.0022737]
[1642917343133,0.00284211,2453.3,2452.5,0.00170527]
[1642917343525,0.00227369,2453.2,2452.5,1.23966135]
[1642917343727,0.00227369,2453.2,2452.5,1.23795608]
[1642917343931,0.00170527,2453.1,2452.4,0.0022737]
[1642917344431,1.46437599,2452.7,2452.1,0.00397897]
[1642917344631,0.00113684,2453.0,2452.1,0.00397897]
[1642917344830,0.04664527,2453.1,2452.1,0.00397897]
[1642917345083,0.04664527,2453.1,2452.6,1.42073974]
[1642917345285,0.00113684,2453.0,2452.6,1.42073974]
[1642917345486,0.00113684,2453.0,2452.1,4.10397897]
[1642917345689,1.08968755,2452.8,2452.1,4.10397897]
[1642917345885,0.00113684,2453.0,2452.2,0.00341054]
[1642917346490,0.00113684,2453.0,2452.5,1.29909815]
[1642917346690,0.00113684,2453.0,2452.2,0.00341054]
[1642917346891,1.11036935,2453.0,2452.2,0.00341054]
[1642917347091,1.41036935,2453.0,2452.2,0.00341054]
[1642917347291,1.71036935,2453.0,2452.2,0.00341054]
[1642917347494,1.47355641,2452.6,2452.2,0.00341054]
[1642917348303,24.06,2452.5,2452.2,0.00341054]
[1642917348500,0.04383,2452.4,2452.2,0.00341054]
[1642917348698,1.0,2452.4,2452.1,4.05341054]
[1642917348930,1.21258255,2452.0,2451.4,0.13819997]
[1642917349134,0.0427,2452.3,2451.4,0.13819997]
[1642917349333,5.20256545,2452.5,2451.9,1.54117584]
[1642917349334,0.04215,2452.4,2451.9,1.54117584]
[1642917349733,0.04328684,2452.4,2452.0,0.00113685]
[1642917349935,2.08532684,2452.4,2452.0,0.00113685]
[1642917350135,1.43341338,2452.3,2452.0,0.00113685]
[1642917350331,1.73341338,2452.3,2452.0,0.00113685]
[1642917350533,2.73341338,2452.3,2452.0,0.00113685]
[1642917351132,2.73341338,2452.3,2452.0,1.34392011]
[1642917351332,2.73341338,2452.3,2452.0,0.00113685]
[1642917351535,1.73341338,2452.3,2452.0,0.00113685]
[1642917352572,2.73341338,2452.3,2452.0,0.00113685]
[1642917352872,2.73341338,2452.3,2451.8,0.0022737]
[1642917353477,24.06,2452.2,2451.8,0.0022737]
[1642917353975,1.11835465,2451.9,2451.8,0.0022737]
[1642917354177,1.11835465,2451.9,2451.1,3.7802]
[1642917354377,1.11835465,2451.9,2451.6,0.00113684]
[1642917354776,1.11835465,2451.9,2451.1,0.00397896]
[1642917354978,1.494,2452.1,2451.1,0.00397896]
[1642917355279,1.494,2452.1,2451.6,1.19658266]
[1642917355280,0.00113684,2452.0,2451.6,1.19658266]
[1642917356336,0.00113684,2452.0,2451.6,1.49658266]
[1642917356523,0.00113684,2452.0,2451.7,2.31432995]
[1642917357725,0.00113684,2452.0,2451.6,1.19658266]
[1642917359529,0.02332784,2451.9,2451.6,1.19658266]
[1642917359927,0.00113684,2452.0,2451.6,1.19658266]
[1642917360174,0.00113684,2452.0,2451.6,1.14658266]
[1642917360376,0.00113684,2452.0,2451.7,2.31428599]
[1642917361880,0.00113684,2452.0,2451.7,6.73046489]
[1642917362080,0.494,2452.9,2452.0,0.00227368]
[1642917362278,3.06181,2453.6,2452.0,0.00227368]
[1642917362279,1.06489,2453.6,2452.1,0.00712921]
[1642917362480,1.06489,2453.6,2452.0,0.00227368]
[1642917362481,0.0022737,2452.4,2452.0,0.00810382]
[1642917362682,0.0022737,2452.4,2452.3,0.30686688]
[1642917362879,1.51958343,2452.8,2452.2,3.6088]
[1642917362880,0.00170528,2452.3,2452.2,3.6088]
[1642917363078,0.00170528,2452.3,2452.1,1.35164341]
[1642917363478,0.00113686,2452.2,2452.0,0.00227368]
[1642917363934,0.04442,2452.7,2452.0,0.00227368]
[1642917363935,1.26620698,2452.1,2452.0,0.00227368]
[1642917366736,1.26620698,2452.1,2452.0,2.31645454]
[1642917367877,1.26620698,2452.1,2452.0,0.00227368]
[1642917368779,2.26620698,2452.1,2452.0,0.00227368]
[1642917368982,1.86620698,2452.1,2452.0,0.00227368]
[1642917369382,3.71058698,2452.1,2452.0,0.00227368]
[1642917369781,4.71058698,2452.1,2452.0,0.00227368]
[1642917370388,2.8,2452.0,2451.8,0.00113684]
[1642917370586,2.93833,2451.9,2451.8,0.00113684]